bitfinex/quotes_ETHUSD_20230119
["timestamp","ask_amount","ask_price","bid_price","bid_amount"]
[1674146124844,23.66699759,1533.8,1533.5,11.2158]
[1674146126736,7.33575,1533.8,1533.6,0.0094229]
[1674146127736,0.816,1533.8,1533.7,1.511]
[1674146127966,0.75,1533.8,1533.7,1.511]
[1674146128094,0.75,1533.8,1533.7,1.96474229]
[1674146132931,0.75,1533.8,1533.7,1.96075536]
[1674146133164,0.75,1533.8,1533.7,1.50701307]
[1674146133494,1.25668629,1533.8,1533.7,1.50701307]
[1674146135200,1.25668629,1533.8,1533.6,3.0924229]
[1674146135349,3.93068629,1533.8,1533.6,3.0264229]
[1674146135561,3.93068629,1533.8,1533.7,0.30264229]
[1674146137818,3.93068629,1533.8,1533.7,6.82281229]
[1674146138029,3.93068629,1533.8,1533.7,6.88881229]
[1674146138648,3.93068629,1533.8,1533.7,9.90381229]
[1674146138819,3.93068629,1533.8,1533.7,8.40381229]
[1674146140907,3.93068629,1533.8,1533.7,1.88364229]
[1674146141095,3.93068629,1533.8,1533.7,1.81764229]
[1674146144692,3.93068629,1533.8,1533.7,3.31764229]
[1674146144836,3.93068629,1533.8,1533.7,1.81764229]
[1674146145175,3.93068629,1533.8,1533.7,1.91425348]
[1674146145575,3.93068629,1533.8,1533.7,5.41425348]
[1674146145844,3.93068629,1533.8,1533.7,3.98025348]
[1674146146070,3.93068629,1533.8,1533.7,3.91425348]
[1674146146422,3.93068629,1533.8,1533.7,3.81764229]
[1674146149887,3.93068629,1533.8,1533.7,3.91435191]
[1674146150091,3.93068629,1533.8,1533.7,3.81764229]
[1674146150883,3.93068629,1533.8,1533.7,3.515]
[1674146152445,3.93068629,1533.8,1533.7,3.61171661]
[1674146152825,3.93068629,1533.8,1533.7,3.515]
[1674146154190,3.93068629,1533.8,1533.7,2.0]
[1674146161720,4.61364597,1533.8,1533.7,2.0]
[1674146161876,5.64669015,1533.8,1533.7,2.0]
[1674146162087,5.71269015,1533.8,1533.7,2.0]
[1674146164325,12.23244015,1533.8,1533.7,2.0]
[1674146165483,5.02973047,1533.8,1533.7,2.0]
[1674146165715,5.02973047,1533.8,1533.7,2.20094229]
[1674146165716,3.99668629,1533.8,1533.7,2.20094229]
[1674146165863,3.99668629,1533.8,1533.7,17.53417894]
[1674146165864,3.92769938,1533.8,1533.7,17.53417894]
[1674146166073,3.92769938,1533.8,1533.7,22.70876017]
[1674146166935,3.92769938,1533.8,1533.7,21.68298684]
[1674146168872,3.92769938,1533.8,1533.7,22.72098684]
[1674146169369,0.066,1533.9,1533.8,1.5]
[1674146169567,1.319,1534.0,1533.8,20.84207267]
[1674146169929,1.319,1534.0,1533.9,15.37444199]
[1674146170147,1.319,1534.0,1533.9,15.44044199]
[1674146170359,1.319,1534.0,1533.9,17.44044199]
[1674146170507,1.319,1534.0,1533.9,21.01439306]
[1674146170718,0.25,1534.0,1533.9,24.29929688]
[1674146170980,0.956,1534.0,1533.9,28.32507021]
[1674146171152,0.956,1534.0,1533.9,27.29929688]
[1674146171366,0.956,1534.0,1533.9,28.32507021]
[1674146171558,0.956,1534.0,1533.9,27.29929688]
[1674146171768,1.206,1534.0,1533.9,27.29929688]
[1674146172453,1.206,1534.0,1533.9,26.61820222]
[1674146172893,1.206,1534.0,1533.9,26.12219919]
[1674146173399,1.206,1534.0,1533.9,25.18959107]
[1674146173766,1.206,1534.0,1533.9,24.95959107]
[1674146174323,1.206,1534.0,1533.9,21.95959107]
[1674146174537,1.206,1534.0,1533.9,20.68859107]
[1674146174748,1.206,1534.0,1533.9,20.68659107]
[1674146174966,1.206,1534.0,1533.9,20.68859107]
[1674146175861,1.456,1534.0,1533.9,20.68859107]
[1674146177395,1.456,1534.0,1533.9,21.5243972]
[1674146177657,1.456,1534.0,1533.9,21.7543972]
[1674146177824,1.456,1534.0,1533.9,23.0323972]
[1674146178011,0.066,1534.4,1534.0,2.30323972]
[1674146178228,0.79076366,1534.6,1534.3,1.266]
[1674146178415,0.72476366,1534.6,1534.3,1.166]
[1674146178621,0.72476366,1534.6,1534.3,16.405692]
[1674146178622,0.058,1534.5,1534.3,16.405692]
[1674146178877,0.058,1534.5,1534.3,15.305692]
[1674146179242,0.058,1534.5,1534.4,1.5]
[1674146179454,0.058,1534.5,1534.4,3.3071692]
[1674146179662,0.308,1534.5,1534.4,16.3415692]
[1674146179935,0.308,1534.5,1534.4,16.6375692]
[1674146180247,0.558,1534.5,1534.4,24.1885692]
[1674146180460,0.808,1534.5,1534.4,24.1885692]
[1674146182338,0.808,1534.5,1534.4,21.4105692]
[1674146182660,0.808,1534.5,1534.4,13.3903692]
[1674146182875,0.808,1534.5,1534.4,11.5832]
[1674146183233,0.808,1534.5,1534.4,11.5332]
[1674146184339,0.808,1534.5,1534.4,13.0332]
[1674146185227,0.808,1534.5,1534.4,19.5504]
[1674146185556,0.808,1534.5,1534.4,19.7804]
[1674146185764,0.808,1534.5,1534.4,22.6306572]
[1674146186217,0.808,1534.5,1534.4,21.1306572]
[1674146186633,0.808,1534.5,1534.4,21.1286572]
[1674146186828,0.808,1534.5,1534.4,21.1306572]
[1674146187035,0.808,1534.5,1534.4,20.9006572]
[1674146187258,0.808,1534.5,1534.4,18.0504]
[1674146196744,0.808,1534.5,1534.4,11.5332]
[1674146196905,0.808,1534.5,1534.4,8.5332]
[1674146197114,0.808,1534.5,1534.4,2.066]
[1674146197365,0.808,1534.5,1534.4,2.0]
[1674146202378,0.808,1534.5,1534.4,1.99724961]
[1674146216944,1.49095968,1534.5,1534.4,1.99724961]
[1674146217161,2.52406785,1534.5,1534.4,1.99724961]
[1674146219240,2.51543526,1534.5,1534.4,1.99724961]
[1674146219588,3.54854343,1534.5,1534.4,1.99724961]
[1674146219763,2.52406785,1534.5,1534.4,1.99724961]
[1674146219977,3.54854343,1534.5,1534.4,1.99724961]
[1674146220390,2.52406785,1534.5,1534.4,1.99724961]
[1674146221433,2.83291666,1534.5,1534.4,1.99724961]
[1674146223312,3.85739224,1534.5,1534.4,1.99724961]
[1674146223580,2.83291666,1534.5,1534.4,1.99724961]
[1674146228504,3.85739224,1534.5,1534.4,1.99724961]
[1674146229222,2.83291666,1534.5,1534.4,1.99724961]
[1674146230151,3.85803828,1534.5,1534.4,1.99724961]
[1674146231494,2.8335627,1534.5,1534.4,1.99724961]
[1674146231713,1.11598199,1534.5,1534.4,8.86417457]
[1674146232047,1.11598199,1534.5,1534.4,8.93017457]
[1674146232361,1.11598199,1534.5,1534.4,11.93017457]
[1674146232662,1.11598199,1534.5,1534.4,18.44737457]
[1674146234123,1.11380574,1534.5,1534.4,18.543375]
[1674146234759,1.11380574,1534.5,1534.4,20.070375]
[1674146236974,1.11380574,1534.5,1534.4,19.820375]
[1674146241793,1.11380574,1534.5,1534.4,19.82028395]
[1674146242003,1.11380574,1534.5,1534.4,19.72437457]
[1674146244969,1.11380574,1534.5,1534.4,11.68017457]
[1674146245242,1.11380574,1534.5,1534.4,1.81324961]
[1674146245582,1.11380574,1534.5,1534.4,1.74724961]
[1674146250508,2.83033119,1534.5,1534.4,1.74724961]
[1674146250719,3.85480677,1534.5,1534.4,1.74724961]
[1674146251144,2.83033119,1534.5,1534.4,1.74724961]
[1674146252405,5.35480677,1534.5,1534.4,1.74724961]
[1674146252650,2.89633119,1534.5,1534.4,1.74724961]
[1674146252837,2.83033119,1534.5,1534.4,1.74724961]
[1674146253395,3.85480677,1534.5,1534.4,1.74724961]
[1674146253607,2.83033119,1534.5,1534.4,1.74724961]
[1674146254220,20.18011436,1534.5,1534.4,1.74724961]
[1674146254502,24.47067481,1534.5,1534.4,1.74724961]
[1674146254717,25.66474515,1534.5,1534.4,1.74724961]
[1674146257570,24.29882266,1534.5,1534.4,1.74724961]
[1674146257766,25.66474515,1534.5,1534.4,1.74724961]
[1674146258620,24.64082589,1534.5,1534.4,1.74724961]
[1674146259300,24.64082589,1534.5,1534.4,1.74400493]
[1674146259444,24.29809814,1534.5,1534.4,1.74400493]
[1674146260500,24.98015563,1534.5,1534.4,1.74400493]
[1674146261071,24.98015563,1534.5,1534.4,1.7406351]
[1674146261820,25.66402063,1534.5,1534.4,1.7406351]
[1674146262648,24.29809814,1534.5,1534.4,1.7406351]
[1674146263030,24.98012806,1534.5,1534.4,1.7406351]
[1674146263646,44.98012806,1534.5,1534.4,1.7406351]
[1674146264106,64.98012806,1534.5,1534.4,1.7406351]
[1674146264427,64.29809814,1534.5,1534.4,1.7406351]
[1674146264645,64.13702063,1534.5,1534.4,1.7406351]
[1674146264806,0.07066266,1534.3,1534.0,0.066]
[1674146265016,17.84084759,1534.2,1533.9,7.8005]
[1674146265227,17.90684759,1534.2,1533.9,7.8005]
[1674146265538,17.90684759,1534.2,1534.0,2.0]
[1674146265749,20.0,1534.1,1534.0,2.0]
[1674146265999,26.58447,1534.1,1534.0,2.0]
[1674146268288,36.39468759,1534.1,1534.0,2.0]
[1674146271267,36.32362157,1534.1,1534.0,2.0]
[1674146271704,36.57362157,1534.1,1534.0,2.0]
[1674146272166,36.65862157,1534.1,1534.0,2.0]
[1674146272592,36.90862157,1534.1,1534.0,2.0]
[1674146276593,38.42862157,1534.1,1534.0,2.0]
[1674146276825,38.91762157,1534.1,1534.0,2.0]
[1674146278064,78.91762157,1534.1,1534.0,2.0]
[1674146278745,79.59962411,1534.1,1534.0,2.0]
[1674146279115,78.91762157,1534.1,1534.0,2.0]
[1674146279330,79.92776789,1534.1,1534.0,2.0]
[1674146279605,80.60977043,1534.1,1534.0,2.0]
[1674146280054,82.01995968,1534.1,1534.0,2.0]
[1674146280265,85.01995968,1534.1,1534.0,2.0]
[1674146280746,89.3933274,1534.1,1533.7,0.066]
[1674146281052,1.52,1533.8,1533.6,0.15848305]
[1674146281264,16.33208759,1533.7,1533.6,0.15848305]
[1674146281479,16.39808759,1533.7,1533.6,0.15848305]
[1674146281629,16.39808759,1533.7,1533.6,2.15848305]
[1674146281839,16.89808759,1533.7,1533.6,2.15848305]
[1674146282168,38.35402157,1533.7,1533.6,2.15848305]
[1674146282373,38.84312157,1533.7,1533.6,2.15848305]
[1674146282694,58.84312157,1533.7,1533.6,2.15848305]
[1674146282910,59.09312157,1533.7,1533.6,2.15848305]
[1674146284149,79.09312157,1533.7,1533.6,2.15848305]
[1674146284356,79.09565372,1533.7,1533.6,2.15848305]
[1674146288044,77.56865372,1533.7,1533.6,2.15848305]
[1674146298623,79.08165372,1533.7,1533.6,2.15848305]
[1674146299325,79.31165372,1533.7,1533.6,2.15848305]
[1674146299988,86.71402441,1533.7,1533.6,2.15848305]
[1674146300312,89.37238684,1533.7,1533.6,2.15848305]
[1674146300631,85.83867928,1533.7,1533.6,2.15848305]
[1674146300779,85.83867928,1533.7,1533.6,2.15606764]
[1674146300991,86.15530504,1533.7,1533.6,2.15606764]
[1674146301235,85.83867928,1533.7,1533.6,2.15606764]
[1674146301446,86.86168309,1533.7,1533.6,2.15606764]
[1674146301846,85.83867928,1533.7,1533.6,2.15606764]
[1674146302870,86.81223747,1533.7,1533.6,2.15606764]
[1674146303105,84.65934331,1533.7,1533.6,2.15606764]
[1674146303873,85.83884859,1533.7,1533.6,2.15606764]
[1674146305038,86.81240678,1533.7,1533.6,2.15606764]
[1674146305396,85.6329015,1533.7,1533.6,2.15606764]
[1674146305717,84.95153526,1533.7,1533.6,2.15606764]
[1674146305967,82.73858615,1533.7,1533.6,2.15606764]
[1674146306193,80.07955372,1533.7,1533.6,2.15606764]
[1674146306398,77.07702157,1533.7,1533.6,2.15606764]
[1674146306805,57.07702157,1533.7,1533.6,2.15606764]
[1674146313457,59.25878641,1533.7,1533.6,2.15606764]
[1674146313779,60.44042214,1533.7,1533.6,2.15606764]
[1674146314490,61.46342595,1533.7,1533.6,2.15606764]
[1674146315311,60.78205971,1533.7,1533.6,2.15606764]
[1674146315714,62.1479822,1533.7,1533.6,2.15606764]
[1674146315932,60.78205971,1533.7,1533.6,2.15606764]
[1674146316945,60.29295971,1533.7,1533.6,2.15606764]
[1674146317410,61.6588822,1533.7,1533.6,2.15606764]
[1674146317865,60.29295971,1533.7,1533.6,2.15606764]
[1674146318675,60.97605947,1533.7,1533.6,2.15606764]
[1674146318891,50.14113807,1533.7,1533.6,2.3716744]
[1674146319156,40.74493398,1533.7,1533.6,2.3716744]
[1674146319936,20.74493398,1533.7,1533.6,2.3716744]
[1674146326304,20.74493398,1533.7,1533.6,3.8986744]
[1674146327687,0.81303949,1533.7,1533.6,11.9192744]
[1674146327836,0.75,1533.7,1533.6,12.0122744]
[1674146329021,0.75,1533.7,1533.6,18.5328744]
[1674146330499,0.067,1533.8,1533.7,1.85328744]
[1674146330847,0.067,1533.8,1533.7,23.04670185]
[1674146331012,0.067,1533.8,1533.7,23.62420135]
[1674146331240,0.433,1533.8,1533.7,30.86340135]
[1674146331475,0.136,1534.0,1533.7,32.86340135]
[1674146331649,0.136,1534.0,1533.9,16.09264]
[1674146331852,0.136,1534.0,1533.9,16.15864]
[1674146332313,0.636,1534.0,1533.9,16.15864]
[1674146332642,0.636,1534.0,1533.9,5.12]
[1674146332793,0.636,1534.0,1533.9,7.66387901]
[1674146333003,0.636,1534.0,1533.9,6.13687901]
[1674146333793,0.636,1534.0,1533.9,26.13687901]
[1674146335124,0.636,1534.0,1533.9,32.65619901]
[1674146336395,0.636,1534.0,1533.9,39.17551901]
[1674146337391,0.636,1534.0,1533.9,40.70251901]
[1674146340601,0.636,1534.0,1533.9,39.17551901]
[1674146340964,0.636,1534.0,1533.9,32.65619901]
[1674146341157,0.636,1534.0,1533.9,31.12919901]
[1674146341803,0.636,1534.0,1533.9,24.60987901]
[1674146342231,0.61920161,1534.0,1533.9,24.60987901]
[1674146342544,0.61920161,1534.0,1533.9,22.066]
[1674146343905,0.61920161,1534.0,1533.9,2.066]
[1674146344131,0.61920161,1534.0,1533.9,2.0]
[1674146345007,10.4298492,1534.0,1533.9,2.0]
[1674146345217,17.01178869,1534.0,1533.9,2.0]
[1674146345460,17.01432084,1534.0,1533.9,2.0]
[1674146346973,21.25707325,1534.0,1533.9,2.0]
[1674146347107,21.06297349,1534.0,1533.9,2.0]
[1674146347757,21.06297349,1534.0,1533.9,1.99769649]
[1674146347963,20.72114168,1534.0,1533.9,1.99769649]
[1674146348211,40.72114168,1534.0,1533.9,1.99769649]
[1674146348432,41.90063322,1534.0,1533.9,1.99769649]
[1674146349056,42.92363703,1534.0,1533.9,1.99769649]
[1674146349852,42.24246503,1534.0,1533.9,1.99769649]
[1674146352731,40.37381381,1534.0,1533.9,1.99769649]
[1674146352954,40.37128166,1534.0,1533.9,1.99769649]
[1674146353899,41.39428547,1534.0,1533.9,1.99769649]
[1674146354700,40.37128166,1534.0,1533.9,1.99769649]
[1674146354894,40.3721518,1534.0,1533.9,1.99769649]
[1674146355860,41.39515561,1534.0,1533.9,1.99769649]
[1674146356070,40.3721518,1534.0,1533.9,1.99769649]
[1674146356677,41.39515561,1534.0,1533.9,1.99769649]
[1674146357325,41.39556584,1534.0,1533.9,1.99769649]
[1674146358943,40.71380302,1534.0,1533.9,1.99769649]
[1674146361043,40.37264233,1534.0,1533.9,1.99769649]
[1674146362773,39.88364233,1534.0,1533.9,1.99769649]
[1674146363033,32.18438065,1534.0,1533.9,1.99769649]
[1674146364345,22.37373306,1534.0,1533.9,1.99769649]
[1674146365324,20.6822411,1534.0,1533.9,1.99769649]
[1674146365573,20.6822411,1534.0,1533.9,2.19746614]
[1674146365714,0.6822411,1534.0,1533.9,3.72446614]
[1674146365920,0.61920161,1534.0,1533.9,3.72446614]
[1674146366134,0.61920161,1534.0,1533.9,5.22446614]
[1674146366440,0.61920161,1534.0,1533.9,3.79046614]
[1674146366590,0.61920161,1534.0,1533.9,3.72446614]
[1674146367234,0.61920161,1534.0,1533.9,10.24378614]
[1674146367453,0.61920161,1534.0,1533.9,10.30978614]
[1674146368691,0.61920161,1534.0,1533.9,11.80978614]
[1674146368905,0.61920161,1534.0,1533.9,10.30978614]
[1674146369405,0.61920161,1534.0,1533.9,11.80978614]
[1674146373291,0.61920161,1534.0,1533.9,19.85610614]
[1674146373292,0.61588999,1534.0,1533.9,19.85610614]
[1674146373738,0.61588999,1534.0,1533.9,39.85610614]
[1674146374911,0.61588999,1534.0,1533.9,38.35610614]
[1674146376533,0.61588999,1534.0,1533.9,25.31746614]
[1674146376743,0.61588999,1534.0,1533.9,28.31746614]
[1674146377013,0.61588999,1534.0,1533.9,41.35610614]
[1674146380229,0.61588999,1534.0,1533.9,39.82910614]
[1674146381101,0.61588999,1534.0,1533.9,39.94597964]
[1674146381310,0.61588999,1534.0,1533.9,41.98350805]
[1674146381576,0.61588999,1534.0,1533.9,42.47250805]
[1674146381928,0.61588999,1534.0,1533.9,41.98350805]
[1674146382945,0.61588999,1534.0,1533.9,42.47250805]
[1674146383594,0.61588999,1534.0,1533.9,41.96197964]
[1674146383805,0.61588999,1534.0,1533.9,42.19197964]
[1674146384688,0.61588999,1534.0,1533.9,42.70204157]
[1674146385057,0.00088999,1534.0,1533.9,42.70204157]
[1674146385272,0.25088999,1534.0,1533.9,42.89413623]
[1674146385846,0.25088999,1534.0,1533.9,42.21304157]
[1674146386417,0.47518562,1534.0,1533.9,42.21304157]
[1674146388431,0.18836128,1534.0,1533.9,42.21304157]
[1674146388677,0.68836128,1534.0,1533.9,41.70297964]
[1674146388853,0.68836128,1534.0,1533.9,42.20651645]
[1674146390685,0.078,1534.3,1534.0,0.24963872]
[1674146390833,0.078,1534.3,1534.2,1.527]
[1674146391204,0.078,1534.3,1534.2,19.3201]
[1674146391512,0.578,1534.3,1534.2,21.3861]
[1674146392851,0.578,1534.3,1534.2,21.49428603]
[1674146393042,0.578,1534.3,1534.2,25.86907863]
[1674146393257,0.578,1534.3,1534.2,25.7608926]
[1674146394932,0.578,1534.3,1534.2,22.4768926]
[1674146396011,0.04180398,1534.6,1534.3,10.58368926]
[1674146396202,0.04180398,1534.6,1534.4,3.0]
[1674146396417,0.04180398,1534.6,1534.5,14.48056]
[1674146396676,0.04180398,1534.6,1534.5,17.54656]
[1674146396877,0.54180398,1534.6,1534.5,17.54656]
[1674146397093,0.52392319,1534.8,1534.5,32.64616992]
[1674146397242,0.52392319,1534.8,1534.7,27.58372]
[1674146397453,0.05417643,1534.9,1534.7,34.71572]
[1674146397712,0.05417643,1534.9,1534.8,26.146]
[1674146397958,0.05417643,1534.9,1534.8,30.787979]
[1674146398083,0.55417643,1534.9,1534.8,32.787979]
[1674146401488,0.55417643,1534.9,1534.8,25.951979]
[1674146401720,0.55417643,1534.9,1534.8,24.424979]
[1674146405919,0.55417643,1534.9,1534.8,25.945979]
[1674146407012,0.55417643,1534.9,1534.8,24.423979]
[1674146409451,0.55417643,1534.9,1534.8,22.672979]
[1674146410589,0.55417643,1534.9,1534.8,24.199979]
[1674146411009,0.55417643,1534.9,1534.8,25.720979]
[1674146411278,0.55417643,1534.9,1534.8,25.950979]
[1674146420622,0.55417643,1534.9,1534.8,24.423979]
[1674146421785,0.55043455,1534.9,1534.8,24.423979]
[1674146425364,0.55043455,1534.9,1534.8,25.950979]
[1674146425566,0.0570882,1535.1,1534.9,4.0950979]
[1674146425759,0.0570882,1535.1,1535.0,32.3156]
[1674146425948,0.0570882,1535.1,1535.0,32.3816]
[1674146426372,0.3070882,1535.1,1535.0,34.3816]
[1674146426602,0.3070882,1535.1,1535.0,34.39101431]
[1674146427003,0.3070882,1535.1,1535.0,37.78844553]
[1674146427176,0.3070882,1535.1,1535.0,57.78844553]
[1674146429769,0.3070882,1535.1,1535.0,56.26144553]
[1674146433003,0.3070882,1535.1,1535.0,49.51679553]
[1674146439666,0.3070882,1535.1,1535.0,44.61936431]
[1674146444772,0.3070882,1535.1,1535.0,44.60995]
[1674146445033,2.51593132,1535.1,1535.0,22.066]
[1674146445351,3.50361839,1535.1,1535.0,22.066]
[1674146445713,4.77806735,1535.1,1535.0,22.066]
[1674146446033,4.77794055,1535.1,1535.0,22.066]
[1674146446250,4.09477908,1535.1,1535.0,22.066]
[1674146446826,24.63698597,1535.1,1535.0,22.066]
[1674146446973,27.56947454,1535.1,1535.0,12.65034192]
[1674146447183,24.81085803,1535.1,1535.0,14.65034192]
[1674146447395,26.85974176,1535.1,1535.0,2.066]
[1674146447666,13.03031,1534.9,1534.6,0.066]
[1674146447854,11.2642724,1534.7,1534.3,0.066]
[1674146448029,1.527,1534.4,1534.2,6.71194796]
[1674146448700,1.527,1534.4,1534.3,2.0]
[1674146449077,0.251,1534.5,1534.3,2.0]
[1674146449754,0.251,1534.5,1534.3,15.03517]
[1674146449919,0.251,1534.5,1534.4,8.020717]
[1674146450131,0.251,1534.5,1534.4,8.086717]
[1674146450357,0.251,1534.5,1534.4,6.5832]
[1674146450574,0.751,1534.5,1534.4,8.5832]
[1674146460427,0.751,1534.5,1534.4,2.066]
[1674146460640,0.751,1534.5,1534.4,2.0]
[1674146461809,2.278,1534.5,1534.4,2.0]
[1674146467481,2.278,1534.5,1534.4,1.99681087]
[1674146471604,2.278,1534.5,1534.4,1.99362152]
[1674146472642,13.76437415,1534.5,1534.4,0.90248214]
[1674146472906,25.32272597,1534.5,1534.4,0.90248214]
[1674146473064,24.36607951,1534.5,1534.4,0.90248214]
[1674146473269,23.70914708,1534.5,1534.4,0.90248214]
[1674146473961,24.36607951,1534.5,1534.4,0.90248214]
[1674146474760,25.04841866,1534.5,1534.4,0.90248214]
[1674146474965,24.36607951,1534.5,1534.4,0.90248214]
[1674146475437,25.97942795,1534.5,1534.4,0.90248214]
[1674146475585,24.36607951,1534.5,1534.4,0.90248214]
[1674146476027,25.04841866,1534.5,1534.4,0.90248214]
[1674146476258,25.981814,1534.5,1534.4,0.90248214]
[1674146477295,25.05095081,1534.5,1534.4,0.90248214]
[1674146477538,24.36861166,1534.5,1534.4,0.90248214]
[1674146477892,22.84161166,1534.5,1534.4,0.90248214]
[1674146478328,21.34161166,1534.5,1534.4,0.90248214]
[1674146478542,19.81207951,1534.5,1534.4,0.90248214]
[1674146478775,19.15514708,1534.5,1534.4,0.90248214]
[1674146479361,9.34661949,1534.5,1534.4,0.89929256]
[1674146479573,7.81961949,1534.5,1534.4,0.89929256]
[1674146480544,0.81403949,1534.5,1534.4,0.89929256]
[1674146480754,0.751,1534.5,1534.4,0.89929256]
[1674146482425,20.12030759,1534.5,1534.4,0.89929256]
[1674146482656,20.18334708,1534.5,1534.4,0.89929256]
[1674146483600,20.18334708,1534.5,1534.4,0.89610276]
[1674146484352,21.7983626,1534.5,1534.4,0.89610276]
[1674146484774,22.2871626,1534.5,1534.4,0.89610276]
[1674146485200,21.7983626,1534.5,1534.4,0.89610276]
[1674146485595,20.86568623,1534.5,1534.4,0.89610276]
[1674146485823,21.79836582,1534.5,1534.4,0.89610276]
[1674146485994,22.92146196,1534.5,1534.4,0.89610276]
[1674146486779,21.79836582,1534.5,1534.4,0.89610276]
[1674146490851,20.28136582,1534.5,1534.4,0.89610276]
[1674146491090,21.40449095,1534.5,1534.4,0.89610276]
[1674146491306,21.74715724,1534.5,1534.4,0.89610276]
[1674146491455,25.12963117,1534.5,1534.4,0.89610276]
[1674146491661,24.41988967,1534.5,1534.4,0.89610276]
[1674146492626,25.7865636,1534.5,1534.4,0.89610276]
[1674146492843,24.41988967,1534.5,1534.4,0.89610276]
[1674146493403,23.76295724,1534.5,1534.4,0.89610276]
[1674146497016,22.23595724,1534.5,1534.4,0.89610276]
[1674146501003,23.60263117,1534.5,1534.4,0.89610276]
[1674146502516,23.11383117,1534.5,1534.4,0.89610276]
[1674146502781,23.60263117,1534.5,1534.4,0.89610276]
[1674146504320,25.12263117,1534.5,1534.4,0.89610276]
[1674146504530,24.09762573,1534.5,1534.4,0.89610276]
[1674146505684,25.80596814,1534.5,1534.4,0.89610276]
[1674146506047,24.43929421,1534.5,1534.4,0.89610276]
[1674146506208,24.09695138,1534.5,1534.4,0.89610276]
[1674146508670,24.09695138,1534.5,1534.4,0.89317026]
[1674146509482,24.49169911,1534.5,1534.4,0.89317026]
[1674146511134,26.20004152,1534.5,1534.4,0.89317026]
[1674146511674,24.83404194,1534.5,1534.4,0.89317026]
[1674146511869,26.20116682,1534.5,1534.4,0.89317026]
[1674146512542,24.83404194,1534.5,1534.4,0.89317026]
[1674146513291,24.58304194,1534.5,1534.4,0.89317026]
[1674146513759,25.95017677,1534.5,1534.4,0.89317026]
[1674146515355,24.24183436,1534.5,1534.4,0.89317026]
[1674146515586,20.36419088,1534.5,1534.4,0.89317026]
[1674146515919,10.55566329,1534.5,1534.4,0.89317026]
[1674146516068,11.2391678,1534.5,1534.4,0.89317026]
[1674146519091,10.55566329,1534.5,1534.4,0.89317026]
[1674146521491,10.79967299,1534.5,1534.4,0.89317026]
[1674146521818,11.92279812,1534.5,1534.4,0.89317026]
[1674146523606,11.92297917,1534.5,1534.4,0.89317026]
[1674146523760,10.89750677,1534.5,1534.4,0.89317026]
[1674146524871,10.55585595,1534.5,1534.4,0.89317026]
[1674146525180,11.2394797,1534.5,1534.4,0.89317026]
[1674146525339,4.7226997,1534.5,1534.4,0.89317026]
[1674146525551,3.53653508,1534.5,1534.4,0.89317026]
[1674146526421,2.51105107,1534.5,1534.4,0.89317026]
[1674146528104,0.91105107,1534.5,1534.4,0.89317026]
[1674146528491,1.41105107,1534.5,1534.4,0.89317026]
[1674146529277,2.43653508,1534.5,1534.4,0.89317026]
[1674146529705,1.41105107,1534.5,1534.4,0.89317026]
[1674146532193,1.41105107,1534.5,1534.4,0.98248729]
[1674146532396,0.72742732,1534.5,1534.4,0.98248729]
[1674146532620,0.72742732,1534.5,1534.4,2.50948729]
[1674146533408,0.72742732,1534.5,1534.4,9.02668729]
[1674146533726,0.72742732,1534.5,1534.4,9.09268729]
[1674146538554,0.72742732,1534.5,1534.4,15.60988729]
[1674146538706,0.72742732,1534.5,1534.4,18.83988729]
[1674146539871,0.72742732,1534.5,1534.4,25.35708729]
[1674146540086,0.72742732,1534.5,1534.4,30.42971789]
[1674146540300,2.732e-05,1534.5,1534.4,32.41012655]
[1674146540546,19.99197347,1534.9,1534.6,19.54881]
[1674146540716,19.99197347,1534.9,1534.8,21.0735]
[1674146540908,19.99197347,1534.9,1534.8,21.1395]
[1674146541122,20.24197347,1534.9,1534.8,24.1395]
[1674146541347,0.56303949,1534.9,1534.8,25.6605]
[1674146541565,0.5,1534.9,1534.8,28.44955]
[1674146543142,0.5,1534.9,1534.8,28.67955]
[1674146545593,0.5,1534.9,1534.8,30.67955]
[1674146547430,0.5,1534.9,1534.8,30.44955]
[1674146548115,0.5,1534.9,1534.8,28.92255]
[1674146549428,0.5,1534.9,1534.8,29.15255]
[1674146550119,0.5,1534.9,1534.8,30.67955]
[1674146551272,0.5,1534.9,1534.8,34.22483907]
[1674146551592,0.5,1534.9,1534.8,30.67955]
[1674146555725,0.5,1534.9,1534.8,29.15855]
[1674146558684,0.5,1534.9,1534.8,27.40155]
[1674146562310,0.5,1534.9,1534.8,20.88605]
[1674146562525,0.5,1534.9,1534.8,2.066]
[1674146562861,0.5,1534.9,1534.8,2.0]
[1674146564075,0.5,1534.9,1534.8,1.99676781]
[1674146564225,2.01953215,1534.9,1534.8,1.99676781]
[1674146564444,9.02331215,1534.9,1534.8,1.99676781]
[1674146564650,10.58635164,1534.9,1534.8,1.99676781]
[1674146565421,17.10143164,1534.9,1534.8,1.99676781]
[1674146566644,15.60143164,1534.9,1534.8,1.99676781]
[1674146566852,14.08443164,1534.9,1534.8,1.99676781]
[1674146570157,15.67305054,1534.9,1534.8,1.99676781]
[1674146570482,17.19305054,1534.9,1534.8,1.99676781]
[1674146571689,27.2600041,1534.9,1534.8,1.99676781]
[1674146571893,22.69230921,1534.9,1534.8,0.1859117]
[1674146572103,27.99234845,1534.9,1534.8,0.1859117]
[1674146572314,24.45010052,1534.9,1534.8,0.1859117]
[1674146573410,23.79316809,1534.9,1534.8,0.1859117]
[1674146574165,24.81558608,1534.9,1534.8,0.1859117]
[1674146574680,23.29558478,1534.9,1534.8,0.1859117]
[1674146574844,21.92844995,1534.9,1534.8,0.1859117]
[1674146575530,17.79427051,1534.9,1534.8,0.1859117]
[1674146575681,16.77185382,1534.9,1534.8,0.1859117]
[1674146576625,15.67099494,1534.9,1534.8,0.1859117]
[1674146577992,14.08443164,1534.9,1534.8,0.1859117]
[1674146578161,16.68152836,1534.9,1534.8,0.1859117]
[1674146578732,20.99569264,1534.9,1534.8,0.1859117]
[1674146579045,21.82912449,1534.9,1534.8,0.1859117]
[1674146579626,22.17384263,1534.9,1534.8,0.1859117]
[1674146580079,22.83077506,1534.9,1534.8,0.1859117]
[1674146581147,24.53911747,1534.9,1534.8,0.1859117]
[1674146581472,24.69898264,1534.9,1534.8,0.1859117]
[1674146581617,28.24086,1534.9,1534.8,0.1859117]
[1674146581825,24.69898264,1534.9,1534.8,0.1859117]
[1674146582517,26.06208284,1534.9,1534.8,0.1859117]
[1674146582673,24.35374043,1534.9,1534.8,0.1859117]